[Event "*** Titled Tuesday Blitz"]
[Site "Chess.com"]
[Date "2021.03.30"]
[Round "4"]
[White "zala02"]
[Black "ajdemipopushi"]
[Result "0-1"]
[WhiteElo "2138"]
[BlackElo "2340"]
[TimeControl "180+1"]
[EndTime "10:39:43 PDT"]
[Termination "ajdemipopushi won by checkmate"]

1. e4 {[%clk 0:03:00.9]} 1... c5 {[%clk 0:02:57.9]} 2. Nf3 {[%clk 0:03:00]} 2...
g6 {[%clk 0:02:58.2]} 3. d3 {[%clk 0:02:59]} 3... Bg7 {[%clk 0:02:57.7]} 4. g3
{[%clk 0:02:58.4]} 4... Nc6 {[%clk 0:02:57.9]} 5. Bg2 {[%clk 0:02:58.5]} 5... e5
{[%clk 0:02:57.1]} 6. O-O {[%clk 0:02:58.1]} 6... Nge7 {[%clk 0:02:56.8]} 7. Nc3
{[%clk 0:02:57.9]} 7... O-O {[%clk 0:02:56.2]} 8. Be3 {[%clk 0:02:57.9]} 8... d6
{[%clk 0:02:44.3]} 9. Qd2 {[%clk 0:02:56.7]} 9... Be6 {[%clk 0:02:39.7]} 10. Ng5
{[%clk 0:02:49.2]} 10... Bd7 {[%clk 0:02:38]} 11. f4 {[%clk 0:02:48.5]} 11...
Nd4 {[%clk 0:02:33.6]} 12. Rae1 {[%clk 0:02:35.7]} 12... h6 {[%clk 0:02:06.8]}
13. Nf3 {[%clk 0:02:33.6]} 13... Kh7 {[%clk 0:02:07]} 14. Nd1 {[%clk 0:02:31.4]}
14... f5 {[%clk 0:01:56.7]} 15. c3 {[%clk 0:02:27.6]} 15... Nxf3+ {[%clk
0:01:56.2]} 16. Bxf3 {[%clk 0:02:26.2]} 16... Bc6 {[%clk 0:01:56.1]} 17. Kh1
{[%clk 0:02:13.3]} 17... Qd7 {[%clk 0:01:54.1]} 18. Bg2 {[%clk 0:02:10.9]} 18...
Rad8 {[%clk 0:01:52.6]} 19. Rg1 {[%clk 0:02:01.5]} 19... b6 {[%clk 0:01:52.1]}
20. Nf2 {[%clk 0:01:53.4]} 20... d5 {[%clk 0:01:50.1]} 21. fxe5 {[%clk
0:01:49.8]} 21... dxe4 {[%clk 0:01:49.5]} 22. d4 {[%clk 0:01:44.3]} 22... cxd4
{[%clk 0:01:20.7]} 23. cxd4 {[%clk 0:01:45.2]} 23... Bxe5 {[%clk 0:01:18.7]} 24.
Bxh6 {[%clk 0:01:38.5]} 24... Rf7 {[%clk 0:01:11.1]} 25. dxe5 {[%clk 0:01:29.7]}
25... Qxd2 {[%clk 0:01:09.7]} 26. Bxd2 {[%clk 0:01:30.6]} 26... Rxd2 {[%clk
0:01:09.4]} 27. Nh3 {[%clk 0:01:30.7]} 27... Kh6 {[%clk 0:01:03.7]} 28. Rc1
{[%clk 0:01:30]} 28... g5 {[%clk 0:00:46.6]} 29. Rge1 {[%clk 0:01:02.5]} 29...
Rf8 {[%clk 0:00:39.2]} 30. Ng1 {[%clk 0:00:58.6]} 30... Rfd8 {[%clk 0:00:37.4]}
31. b4 {[%clk 0:00:50.1]} 31... Rxa2 {[%clk 0:00:23.5]} 32. Ne2 {[%clk
0:00:49.8]} 32... Rdd2 {[%clk 0:00:22.9]} 33. Nc3 {[%clk 0:00:38.9]} 33... Rxg2
{[%clk 0:00:22.1]} 34. Nxa2 {[%clk 0:00:38.6]} 34... Rxa2 {[%clk 0:00:22.2]} 35.
Red1 {[%clk 0:00:38.5]} 35... e3+ {[%clk 0:00:22.2]} 36. Kg1 {[%clk 0:00:34.8]}
36... f4 {[%clk 0:00:20.9]} 37. gxf4 {[%clk 0:00:34.3]} 37... gxf4 {[%clk
0:00:21.2]} 38. Rd6+ {[%clk 0:00:34.1]} 38... Kg5 {[%clk 0:00:21.3]} 39. Kf1
{[%clk 0:00:34.2]} 39... f3 {[%clk 0:00:21.2]} 40. Rd3 {[%clk 0:00:32]} 40...
Kf4 {[%clk 0:00:20.9]} 41. h4 {[%clk 0:00:28.9]} 41... Be4 {[%clk 0:00:19.8]}
42. Rd4 {[%clk 0:00:27.7]} 42... Kxe5 {[%clk 0:00:19.9]} 43. Rdc4 {[%clk
0:00:26.3]} 43... Nd5 {[%clk 0:00:20]} 44. Rc8 {[%clk 0:00:25.4]} 44... Rh2
{[%clk 0:00:19.6]} 45. Re8+ {[%clk 0:00:24.3]} 45... Kd4 {[%clk 0:00:18.8]} 46.
Kg1 {[%clk 0:00:24.3]} 46... Rxh4 {[%clk 0:00:18.4]} 47. Rd8 {[%clk 0:00:23.5]}
47... f2+ {[%clk 0:00:17.5]} 48. Kf1 {[%clk 0:00:23.3]} 48... Rh1+ {[%clk
0:00:18.4]} 49. Ke2 {[%clk 0:00:23.3]} 49... Rxc1 {[%clk 0:00:18.7]} 50. b5
{[%clk 0:00:22.2]} 50... Bd3+ {[%clk 0:00:18.8]} 51. Kf3 {[%clk 0:00:21.4]}
51... f1=Q+ {[%clk 0:00:19.7]} 52. Kg3 {[%clk 0:00:21.6]} 52... Qg1+ {[%clk
0:00:19.8]} 53. Kh4 {[%clk 0:00:21.6]} 53... Qh2+ {[%clk 0:00:19.5]} 54. Kg5
{[%clk 0:00:21.7]} 54... Rg1# {[%clk 0:00:19.8]} 0-1

[Event "*** Titled Tuesday Blitz"]
[Site "Chess.com"]
[Date "2021.03.30"]
[Round "4"]
[White "Slovak_fighter2000"]
[Black "andy_rekt"]
[Result "1-0"]
[WhiteElo "2485"]
[BlackElo "2300"]
[TimeControl "180+1"]
[EndTime "10:39:45 PDT"]
[Termination "Slovak_fighter2000 won on time"]

1. d4 {[%clk 0:02:59.6]} 1... f5 {[%clk 0:02:57.9]} 2. Bg5 {[%clk 0:02:58.8]}
2... h6 {[%clk 0:02:57.2]} 3. Bh4 {[%clk 0:02:42.5]} 3... g5 {[%clk 0:02:55.8]}
4. Bg3 {[%clk 0:02:40.9]} 4... Nf6 {[%clk 0:02:53.9]} 5. e3 {[%clk 0:02:26.7]}
5... d6 {[%clk 0:02:50.4]} 6. h4 {[%clk 0:02:23.6]} 6... Bg7 {[%clk 0:02:47.5]}
7. hxg5 {[%clk 0:02:23.5]} 7... hxg5 {[%clk 0:02:48.4]} 8. Rxh8+ {[%clk
0:02:23.7]} 8... Bxh8 {[%clk 0:02:49.3]} 9. c4 {[%clk 0:02:21.1]} 9... Nc6
{[%clk 0:02:47.7]} 10. Nc3 {[%clk 0:02:20.8]} 10... e5 {[%clk 0:02:41.1]} 11.
dxe5 {[%clk 0:02:16.3]} 11... dxe5 {[%clk 0:02:41.2]} 12. Qxd8+ {[%clk
0:02:15.6]} 12... Kxd8 {[%clk 0:02:42.1]} 13. O-O-O+ {[%clk 0:02:14.9]} 13...
Bd7 {[%clk 0:02:40.1]} 14. Nf3 {[%clk 0:02:14.3]} 14... f4 {[%clk 0:02:31.4]}
15. Bh2 {[%clk 0:02:02.2]} 15... Ng4 {[%clk 0:02:21.3]} 16. Bg1 {[%clk
0:01:59.5]} 16... fxe3 {[%clk 0:01:34.1]} 17. fxe3 {[%clk 0:01:58.8]} 17... Ke8
{[%clk 0:00:51.5]} 18. Nxg5 {[%clk 0:01:52.7]} 18... Bg7 {[%clk 0:00:51.2]} 19.
Be2 {[%clk 0:01:46.4]} 19... Bh6 {[%clk 0:00:48.6]} 20. Nce4 {[%clk 0:01:45.7]}
20... Bxg5 {[%clk 0:00:25.7]} 21. Nxg5 {[%clk 0:01:41.5]} 21... Nf6 {[%clk
0:00:25.3]} 22. Bf3 {[%clk 0:01:32.5]} 22... Ke7 {[%clk 0:00:25]} 23. Ne4 {[%clk
0:01:32.1]} 23... Nxe4 {[%clk 0:00:20.3]} 24. Bxe4 {[%clk 0:01:33]} 24... Rg8
{[%clk 0:00:19.2]} 25. Bh2 {[%clk 0:01:30.7]} 25... Rg4 {[%clk 0:00:17.8]} 26.
Bf3 {[%clk 0:01:30.1]} 26... Rxc4+ {[%clk 0:00:17.6]} 27. Kd2 {[%clk 0:01:27.8]}
27... e4 {[%clk 0:00:17.8]} 28. Be2 {[%clk 0:01:24.2]} 28... Rc5 {[%clk
0:00:18.1]} 29. Bxc7 {[%clk 0:01:23.2]} 29... Nb4 {[%clk 0:00:14.8]} 30. Rc1
{[%clk 0:01:12.9]} 30... Rxc1 {[%clk 0:00:13.1]} 31. Kxc1 {[%clk 0:01:13.8]}
31... Nxa2+ {[%clk 0:00:13.8]} 32. Kb1 {[%clk 0:01:11.5]} 32... Nb4 {[%clk
0:00:14.5]} 33. Bf4 {[%clk 0:01:07.6]} 33... Nd5 {[%clk 0:00:14.7]} 34. Bg5+
{[%clk 0:01:05.1]} 34... Ke6 {[%clk 0:00:14.9]} 35. Bg4+ {[%clk 0:01:04.5]}
35... Kd6 {[%clk 0:00:15.2]} 36. Bh5 {[%clk 0:01:01.3]} 36... Ke5 {[%clk
0:00:12.9]} 37. g3 {[%clk 0:00:56.5]} 37... a5 {[%clk 0:00:05.6]} 38. Kc2 {[%clk
0:00:55.5]} 38... b5 {[%clk 0:00:05.2]} 39. Bf4+ {[%clk 0:00:55.1]} 39... Nxf4
{[%clk 0:00:04.7]} 40. gxf4+ {[%clk 0:00:56]} 40... Kd5 {[%clk 0:00:04.5]} 41.
Bf7+ {[%clk 0:00:50]} 41... Kc5 {[%clk 0:00:03.2]} 42. Kc3 {[%clk 0:00:48.1]}
42... Bh3 {[%clk 0:00:02.8]} 43. Bg6 {[%clk 0:00:43.9]} 43... b4+ {[%clk
0:00:03.3]} 44. Kc2 {[%clk 0:00:43.1]} 44... Kd5 {[%clk 0:00:03.8]} 45. Kb3
{[%clk 0:00:40.7]} 45... Bf1 {[%clk 0:00:03.7]} 46. Ka4 {[%clk 0:00:40.5]} 46...
Kc4 {[%clk 0:00:03.7]} 47. Bxe4 {[%clk 0:00:39.4]} 47... Be2 {[%clk 0:00:03.3]}
48. Kxa5 {[%clk 0:00:38]} 48... Kb3 {[%clk 0:00:03.6]} 49. Bd5+ {[%clk 0:00:38]}
49... Kxb2 {[%clk 0:00:02.9]} 50. Kxb4 {[%clk 0:00:38.6]} 50... Kc2 {[%clk
0:00:03.2]} 51. e4 {[%clk 0:00:34.3]} 51... Kd3 {[%clk 0:00:02.3]} 52. Kc5
{[%clk 0:00:34.3]} 52... Bg4 {[%clk 0:00:01.3]} 53. Kd6 {[%clk 0:00:33.7]} 1-0

[Event "*** Titled Tuesday Blitz"]
[Site "Chess.com"]
[Date "2021.03.30"]
[Round "4"]
[White "AlexPapasimakopoulos"]
[Black "jcibarra"]
[Result "0-1"]
[WhiteElo "2632"]
[BlackElo "2837"]
[TimeControl "180+1"]
[EndTime "10:39:47 PDT"]
[Termination "jcibarra won by checkmate"]

1. d4 {[%clk 0:03:00.9]} 1... Nf6 {[%clk 0:02:57.1]} 2. c4 {[%clk 0:03:01.3]}
2... d6 {[%clk 0:02:56.9]} 3. Nf3 {[%clk 0:03:01.1]} 3... g6 {[%clk 0:02:57]} 4.
Nc3 {[%clk 0:03:01]} 4... Bf5 {[%clk 0:02:55]} 5. Nh4 {[%clk 0:02:59.8]} 5...
Bd7 {[%clk 0:02:53.8]} 6. e4 {[%clk 0:02:59.8]} 6... e5 {[%clk 0:02:53.7]} 7.
Nf3 {[%clk 0:02:59.6]} 7... exd4 {[%clk 0:02:53.4]} 8. Nxd4 {[%clk 0:02:59.5]}
8... Bg7 {[%clk 0:02:53.9]} 9. Be2 {[%clk 0:02:59.9]} 9... O-O {[%clk
0:02:53.6]} 10. O-O {[%clk 0:03:00.4]} 10... Re8 {[%clk 0:02:53.4]} 11. f3
{[%clk 0:03:00.8]} 11... Nc6 {[%clk 0:02:53.5]} 12. Be3 {[%clk 0:03:00.9]} 12...
Nh5 {[%clk 0:02:53.3]} 13. Nxc6 {[%clk 0:02:58]} 13... bxc6 {[%clk 0:02:41.7]}
14. Qd2 {[%clk 0:02:57.5]} 14... c5 {[%clk 0:02:34.5]} 15. Rac1 {[%clk 0:02:53]}
15... Rb8 {[%clk 0:02:31.6]} 16. b3 {[%clk 0:02:52.9]} 16... Bc6 {[%clk
0:01:58.6]} 17. Rfe1 {[%clk 0:02:33]} 17... Qh4 {[%clk 0:01:51]} 18. Bf2 {[%clk
0:02:30.2]} 18... Qf4 {[%clk 0:01:46.6]} 19. Qxf4 {[%clk 0:02:24.6]} 19... Nxf4
{[%clk 0:01:46.3]} 20. Bf1 {[%clk 0:02:25.3]} 20... Ne6 {[%clk 0:01:30.9]} 21.
Ne2 {[%clk 0:02:22.9]} 21... a5 {[%clk 0:01:25.7]} 22. Rcd1 {[%clk 0:02:21.6]}
22... a4 {[%clk 0:01:22.3]} 23. Rd3 {[%clk 0:02:21.6]} 23... axb3 {[%clk
0:01:15.4]} 24. axb3 {[%clk 0:02:22.5]} 24... Rb6 {[%clk 0:01:07.7]} 25. Nc1
{[%clk 0:01:52.5]} 25... Ra8 {[%clk 0:01:05.2]} 26. Be3 {[%clk 0:01:49.9]} 26...
Nd4 {[%clk 0:01:03.3]} 27. Be2 {[%clk 0:01:45.7]} 27... Ra3 {[%clk 0:01:00.1]}
28. Bd1 {[%clk 0:01:45.3]} 28... Ra1 {[%clk 0:00:56.2]} 29. Kf1 {[%clk
0:01:43.4]} 29... Rb1 {[%clk 0:00:49.5]} 30. Bg5 {[%clk 0:01:25.1]} 30... h6
{[%clk 0:00:40.2]} 31. Be3 {[%clk 0:01:23.6]} 31... Ra6 {[%clk 0:00:39.6]} 32.
Ne2 {[%clk 0:01:17.5]} 32... Ne6 {[%clk 0:00:32.7]} 33. Bc2 {[%clk 0:01:16]}
33... Rb2 {[%clk 0:00:31.2]} 34. Bd1 {[%clk 0:01:08.7]} 34... Raa2 {[%clk
0:00:31.1]} 35. Bc1 {[%clk 0:01:05.9]} 35... Rb1 {[%clk 0:00:28.9]} 36. Be3
{[%clk 0:01:05.4]} 36... Raa1 {[%clk 0:00:26.2]} 37. Bf2 {[%clk 0:01:05.9]}
37... Bb7 {[%clk 0:00:20.3]} 38. g3 {[%clk 0:01:01.2]} 38... Ba6 {[%clk
0:00:20.2]} 39. h4 {[%clk 0:00:51.4]} 39... h5 {[%clk 0:00:20.2]} 40. Be3 {[%clk
0:00:49.8]} 40... Be5 {[%clk 0:00:19.6]} 41. f4 {[%clk 0:00:48.4]} 41... Bg7
{[%clk 0:00:19.8]} 42. f5 {[%clk 0:00:48.8]} 42... Nf8 {[%clk 0:00:18.7]} 43.
Bf2 {[%clk 0:00:44.1]} 43... Nd7 {[%clk 0:00:17.8]} 44. Bc2 {[%clk 0:00:41.1]}
44... Rxe1+ {[%clk 0:00:16.7]} 45. Bxe1 {[%clk 0:00:42]} 45... Ne5 {[%clk
0:00:17.3]} 46. Re3 {[%clk 0:00:41]} 46... Bb7 {[%clk 0:00:16.7]} 47. Nf4 {[%clk
0:00:38.4]} 47... Ng4 {[%clk 0:00:16.3]} 48. Re2 {[%clk 0:00:38.7]} 48... Bd4
{[%clk 0:00:16.3]} 49. Kg2 {[%clk 0:00:36.8]} 49... Ne3+ {[%clk 0:00:16.1]} 50.
Rxe3 {[%clk 0:00:31.9]} 50... Bxe3 {[%clk 0:00:16.3]} 51. Nd3 {[%clk 0:00:25.1]}
51... Bxe4+ {[%clk 0:00:14.9]} 52. Kh2 {[%clk 0:00:23.7]} 52... Bxd3 {[%clk
0:00:11.2]} 53. Ba5 {[%clk 0:00:24.6]} 53... Rxa5 {[%clk 0:00:10.5]} 54. Bb1
{[%clk 0:00:24.4]} 54... Bxb1 {[%clk 0:00:10.4]} 55. f6 {[%clk 0:00:24.5]} 55...
Bf5 {[%clk 0:00:09.2]} 56. b4 {[%clk 0:00:24.2]} 56... Ra2+ {[%clk 0:00:09.5]}
57. Kh1 {[%clk 0:00:25.1]} 57... Be4# {[%clk 0:00:09.6]} 0-1

[Event "*** Titled Tuesday Blitz"]
[Site "Chess.com"]
[Date "2021.03.30"]
[Round "4"]
[White "LionTheLeon_06"]
[Black "anon481216"]
[Result "1-0"]
[WhiteElo "2697"]
[BlackElo "2512"]
[TimeControl "180+1"]
[EndTime "10:39:48 PDT"]
[Termination "LionTheLeon_06 won by resignation"]

1. Nf3 {[%clk 0:03:00.9]} 1... d5 {[%clk 0:02:59.1]} 2. c4 {[%clk 0:03:00.2]}
2... e6 {[%clk 0:02:58.3]} 3. b3 {[%clk 0:02:59.6]} 3... d4 {[%clk 0:02:56.4]}
4. Bb2 {[%clk 0:02:59]} 4... c5 {[%clk 0:02:56.4]} 5. e3 {[%clk 0:02:59.3]} 5...
Nc6 {[%clk 0:02:56.3]} 6. exd4 {[%clk 0:02:59.4]} 6... cxd4 {[%clk 0:02:56.2]}
7. g3 {[%clk 0:02:59.7]} 7... Nf6 {[%clk 0:02:54]} 8. Bg2 {[%clk 0:02:59.6]}
8... Bc5 {[%clk 0:02:53]} 9. O-O {[%clk 0:02:58.2]} 9... O-O {[%clk 0:02:52.8]}
10. Re1 {[%clk 0:02:57.3]} 10... a5 {[%clk 0:02:35.8]} 11. d3 {[%clk 0:02:38.4]}
11... a4 {[%clk 0:02:27.3]} 12. bxa4 {[%clk 0:02:33.9]} 12... Qa5 {[%clk
0:02:16.8]} 13. Nbd2 {[%clk 0:02:23.5]} 13... Ba7 {[%clk 0:02:00]} 14. Nb3
{[%clk 0:02:17.2]} 14... Qxa4 {[%clk 0:01:59.9]} 15. Nbxd4 {[%clk 0:02:11.8]}
15... Qxd1 {[%clk 0:01:59.4]} 16. Rexd1 {[%clk 0:02:10.2]} 16... Nxd4 {[%clk
0:01:57.9]} 17. Nxd4 {[%clk 0:02:09.9]} 17... Rd8 {[%clk 0:01:52.1]} 18. Nb5
{[%clk 0:02:08.4]} 18... Bb6 {[%clk 0:01:41.9]} 19. a4 {[%clk 0:01:57]} 19...
Ba5 {[%clk 0:01:32.8]} 20. d4 {[%clk 0:01:51.8]} 20... Rb8 {[%clk 0:01:28.5]}
21. d5 {[%clk 0:01:22.6]} 21... exd5 {[%clk 0:01:28.4]} 22. Be5 {[%clk
0:01:19.5]} 22... Ra8 {[%clk 0:01:25.4]} 23. cxd5 {[%clk 0:01:19.4]} 23... Bd7
{[%clk 0:01:23.5]} 24. d6 {[%clk 0:01:09.5]} 24... Bc6 {[%clk 0:01:21.8]} 25.
Rac1 {[%clk 0:01:04.6]} 25... Bxg2 {[%clk 0:01:17.5]} 26. Kxg2 {[%clk
0:01:05.5]} 26... Nd7 {[%clk 0:01:14.7]} 27. Bd4 {[%clk 0:00:59.3]} 27... f6
{[%clk 0:01:13.9]} 28. Re1 {[%clk 0:00:57.2]} 28... Re8 {[%clk 0:01:12.7]} 29.
Nc7 {[%clk 0:00:39.9]} 29... Rxe1 {[%clk 0:01:11.8]} 30. Rxe1 {[%clk 0:00:38.3]}
30... Bxc7 {[%clk 0:00:45.4]} 31. dxc7 {[%clk 0:00:37.5]} 31... Rc8 {[%clk
0:00:46]} 32. Rc1 {[%clk 0:00:34.2]} 32... Kf7 {[%clk 0:00:46.3]} 33. a5 {[%clk
0:00:34.4]} 33... Ke6 {[%clk 0:00:45.8]} 34. Bb6 {[%clk 0:00:31.7]} 34... Ne5
{[%clk 0:00:43.7]} 35. Rd1 {[%clk 0:00:27.2]} 35... Nd7 {[%clk 0:00:37.2]} 36.
f4 {[%clk 0:00:25]} 36... f5 {[%clk 0:00:35.5]} 37. Kf3 {[%clk 0:00:23.4]} 37...
g6 {[%clk 0:00:35.7]} 38. Ke3 {[%clk 0:00:22.3]} 38... Ke7 {[%clk 0:00:31.6]}
39. Rd3 {[%clk 0:00:16.7]} 39... Ke6 {[%clk 0:00:31.6]} 40. Kd2 {[%clk
0:00:14.9]} 40... Ra8 {[%clk 0:00:29.7]} 41. Kc3 {[%clk 0:00:13.7]} 41... Rc8
{[%clk 0:00:29.4]} 42. Kc4 {[%clk 0:00:13.6]} 42... Ra8 {[%clk 0:00:24.5]} 43.
Kb5 {[%clk 0:00:13.2]} 43... Ke7 {[%clk 0:00:24.9]} 44. Rc3 {[%clk 0:00:08.1]}
44... Rc8 {[%clk 0:00:24.3]} 45. a6 {[%clk 0:00:07.4]} 45... bxa6+ {[%clk
0:00:24.5]} 46. Kxa6 {[%clk 0:00:07.4]} 46... Kd6 {[%clk 0:00:13.4]} 47. Kb7
{[%clk 0:00:07.5]} 47... Nxb6 {[%clk 0:00:12.2]} 48. Kxb6 {[%clk 0:00:07]} 48...
Kd5 {[%clk 0:00:07.3]} 49. Kb7 {[%clk 0:00:07]} 1-0

[Event "*** Titled Tuesday Blitz"]
[Site "Chess.com"]
[Date "2021.03.30"]
[Round "4"]
[White "SirStrateg"]
[Black "Sofiia_Hryzlova"]
[Result "0-1"]
[WhiteElo "2557"]
[BlackElo "2336"]
[TimeControl "180+1"]
[EndTime "10:39:50 PDT"]
[Termination "Sofiia_Hryzlova won on time"]

1. d4 {[%clk 0:03:00.9]} 1... Nf6 {[%clk 0:02:57.6]} 2. Bf4 {[%clk 0:03:01.2]}
2... d5 {[%clk 0:02:53.7]} 3. e3 {[%clk 0:03:01]} 3... Nbd7 {[%clk 0:02:52.3]}
4. c4 {[%clk 0:03:00]} 4... c6 {[%clk 0:02:50.9]} 5. Nc3 {[%clk 0:02:58.3]} 5...
e6 {[%clk 0:02:50]} 6. cxd5 {[%clk 0:02:52.4]} 6... exd5 {[%clk 0:02:46.9]} 7.
Bd3 {[%clk 0:02:50.8]} 7... g6 {[%clk 0:02:45.9]} 8. h3 {[%clk 0:02:48]} 8...
Bg7 {[%clk 0:02:44.9]} 9. Nf3 {[%clk 0:02:48.1]} 9... O-O {[%clk 0:02:43.8]} 10.
O-O {[%clk 0:02:48.6]} 10... Re8 {[%clk 0:02:42.9]} 11. Qc2 {[%clk 0:02:46.8]}
11... b6 {[%clk 0:02:28.4]} 12. b4 {[%clk 0:02:44.3]} 12... Bb7 {[%clk 0:02:26]}
13. a4 {[%clk 0:02:41.5]} 13... a6 {[%clk 0:02:25]} 14. Ne5 {[%clk 0:01:59.1]}
14... Nh5 {[%clk 0:02:00.1]} 15. a5 {[%clk 0:01:44.8]} 15... c5 {[%clk
0:01:40.2]} 16. bxc5 {[%clk 0:01:09]} 16... bxc5 {[%clk 0:01:31.8]} 17. Rfb1
{[%clk 0:01:00.2]} 17... cxd4 {[%clk 0:01:21.6]} 18. Rxb7 {[%clk 0:00:59.4]}
18... Nxe5 {[%clk 0:01:19.8]} 19. Bxe5 {[%clk 0:00:59.8]} 19... Bxe5 {[%clk
0:01:18.3]} 20. exd4 {[%clk 0:00:54.4]} 20... Bxd4 {[%clk 0:01:14.2]} 21. Ra4
{[%clk 0:00:43.4]} 21... Bg7 {[%clk 0:00:59.7]} 22. Ne2 {[%clk 0:00:34.1]} 22...
Rc8 {[%clk 0:00:42.8]} 23. Qb3 {[%clk 0:00:29]} 23... Qd6 {[%clk 0:00:30.3]} 24.
Rb6 {[%clk 0:00:20.2]} 24... Rc6 {[%clk 0:00:29.7]} 25. Rab4 {[%clk 0:00:17.5]}
25... Rec8 {[%clk 0:00:24.4]} 26. Rxc6 {[%clk 0:00:17.3]} 26... Rxc6 {[%clk
0:00:24.1]} 27. Rb8+ {[%clk 0:00:15.5]} 27... Bf8 {[%clk 0:00:24.1]} 28. Rb6
{[%clk 0:00:15.2]} 28... Nf4 {[%clk 0:00:14.9]} 29. Nxf4 {[%clk 0:00:14.2]}
29... Rc1+ {[%clk 0:00:14.4]} 30. Bf1 {[%clk 0:00:13.8]} 30... Qxf4 {[%clk
0:00:15]} 31. Qxd5 {[%clk 0:00:11.4]} 31... Qa4 {[%clk 0:00:13.2]} 32. Rxa6
{[%clk 0:00:10.3]} 32... Qa1 {[%clk 0:00:12.6]} 33. Qd3 {[%clk 0:00:09.1]} 33...
Bc5 {[%clk 0:00:11.2]} 34. Ra8+ {[%clk 0:00:08.9]} 34... Kg7 {[%clk 0:00:11]}
35. a6 {[%clk 0:00:07]} 35... Bd4 {[%clk 0:00:10.3]} 36. Rd8 {[%clk 0:00:05.7]}
36... Bc5 {[%clk 0:00:09.5]} 37. Rd5 {[%clk 0:00:05.7]} 37... Qb2 {[%clk
0:00:09]} 38. Rxc5 {[%clk 0:00:05.8]} 38... Rxc5 {[%clk 0:00:09.8]} 39. Qf3
{[%clk 0:00:03.8]} 39... Ra5 {[%clk 0:00:09]} 40. Qd3 {[%clk 0:00:03.9]} 40...
Ra1 {[%clk 0:00:08.8]} 41. h4 {[%clk 0:00:04.3]} 41... Qa3 {[%clk 0:00:08.5]}
42. Qd4+ {[%clk 0:00:03.4]} 42... f6 {[%clk 0:00:07.8]} 43. Qd7+ {[%clk
0:00:03.5]} 43... Kh6 {[%clk 0:00:08.2]} 44. Qd2+ {[%clk 0:00:03.3]} 44... g5
{[%clk 0:00:07.4]} 45. hxg5+ {[%clk 0:00:03.2]} 45... fxg5 {[%clk 0:00:08.3]}
46. Qe2 {[%clk 0:00:02.6]} 46... Qa2 {[%clk 0:00:07.6]} 0-1

[Event "*** Titled Tuesday Blitz"]
[Site "Chess.com"]
[Date "2021.03.30"]
[Round "4"]
[White "AradNazari"]
[Black "frederiksvane"]
[Result "0-1"]
[WhiteElo "2494"]
[BlackElo "2696"]
[TimeControl "180+1"]
[EndTime "10:39:51 PDT"]
[Termination "frederiksvane won by resignation"]

1. d4 {[%clk 0:02:47.8]} 1... Nf6 {[%clk 0:02:59.8]} 2. c4 {[%clk 0:02:47.8]}
2... g6 {[%clk 0:02:59.5]} 3. g3 {[%clk 0:02:48.2]} 3... Bg7 {[%clk 0:02:59.8]}
4. Bg2 {[%clk 0:02:48.4]} 4... O-O {[%clk 0:03:00.4]} 5. Nf3 {[%clk 0:02:48.8]}
5... d6 {[%clk 0:03:00.3]} 6. O-O {[%clk 0:02:49.2]} 6... Nc6 {[%clk 0:03:00.8]}
7. Nc3 {[%clk 0:02:49.8]} 7... a6 {[%clk 0:02:59.9]} 8. h3 {[%clk 0:02:48.6]}
8... Rb8 {[%clk 0:02:58.7]} 9. e4 {[%clk 0:02:30.8]} 9... b5 {[%clk 0:02:57.9]}
10. cxb5 {[%clk 0:02:20.1]} 10... axb5 {[%clk 0:02:58.8]} 11. e5 {[%clk
0:02:20.8]} 11... Ne8 {[%clk 0:02:39.2]} 12. Qe2 {[%clk 0:02:15.8]} 12... b4
{[%clk 0:02:34.4]} 13. Na4 {[%clk 0:01:58.3]} 13... Bd7 {[%clk 0:02:24]} 14. b3
{[%clk 0:01:56.8]} 14... Qc8 {[%clk 0:02:13.5]} 15. Kh2 {[%clk 0:01:56]} 15...
Na7 {[%clk 0:01:55.9]} 16. Re1 {[%clk 0:01:52.7]} 16... Bb5 {[%clk 0:01:53.2]}
17. Qc2 {[%clk 0:01:52.4]} 17... c5 {[%clk 0:01:44.9]} 18. dxc5 {[%clk
0:01:39.3]} 18... Bxa4 {[%clk 0:01:45.1]} 19. bxa4 {[%clk 0:01:35.5]} 19... dxc5
{[%clk 0:01:45.2]} 20. Nd2 {[%clk 0:01:34.6]} 20... Nc6 {[%clk 0:01:23.2]} 21.
Bb2 {[%clk 0:01:14.4]} 21... Nd4 {[%clk 0:01:16]} 22. Bxd4 {[%clk 0:01:11.5]}
22... cxd4 {[%clk 0:01:16.9]} 23. Qxc8 {[%clk 0:01:11.5]} 23... Rxc8 {[%clk
0:01:17.8]} 24. Nb3 {[%clk 0:01:11]} 24... f6 {[%clk 0:00:56.1]} 25. e6 {[%clk
0:00:37.5]} 25... f5 {[%clk 0:00:53.9]} 26. a5 {[%clk 0:00:35.5]} 26... Nc7
{[%clk 0:00:45.9]} 27. Bb7 {[%clk 0:00:26.4]} 27... Rcd8 {[%clk 0:00:32.2]} 28.
a6 {[%clk 0:00:22.7]} 28... f4 {[%clk 0:00:22]} 29. a7 {[%clk 0:00:15.3]} 29...
fxg3+ {[%clk 0:00:22]} 30. fxg3 {[%clk 0:00:16.2]} 30... d3 {[%clk 0:00:20.8]}
31. Rad1 {[%clk 0:00:16]} 31... Bc3 {[%clk 0:00:20.2]} 32. Re3 {[%clk
0:00:15.5]} 32... Rf2+ {[%clk 0:00:18]} 33. Kg1 {[%clk 0:00:13.8]} 33... Rxa2
{[%clk 0:00:18.1]} 34. Rexd3 {[%clk 0:00:08.7]} 34... Rxd3 {[%clk 0:00:19]} 35.
Rxd3 {[%clk 0:00:09.4]} 35... Rxa7 {[%clk 0:00:19.6]} 36. Nc5 {[%clk 0:00:05.3]}
36... Nb5 {[%clk 0:00:10.1]} 37. Bd5 {[%clk 0:00:03.3]} 37... Bd4+ {[%clk
0:00:09.7]} 38. Kg2 {[%clk 0:00:03.3]} 38... Bxc5 {[%clk 0:00:10]} 39. Bc4
{[%clk 0:00:04.2]} 39... Nd6 {[%clk 0:00:10.1]} 40. Bb3 {[%clk 0:00:04.5]} 40...
Kg7 {[%clk 0:00:10.1]} 41. g4 {[%clk 0:00:05]} 41... Ra3 {[%clk 0:00:10.5]} 42.
Rf3 {[%clk 0:00:04.7]} 42... g5 {[%clk 0:00:10]} 43. h4 {[%clk 0:00:04.7]} 43...
h6 {[%clk 0:00:09.5]} 44. Kh3 {[%clk 0:00:05.6]} 44... Ra1 {[%clk 0:00:06.3]}
45. h5 {[%clk 0:00:03.9]} 45... Rc1 {[%clk 0:00:06.4]} 46. Kg2 {[%clk
0:00:03.1]} 46... Rc3 {[%clk 0:00:07.2]} 0-1